[Event "*** Titled Tuesday Blitz"]
[Site "Chess.com"]
[Date "2019.01.01"]
[Round "4"]
[White "Fivetrick"]
[Black "Orest_Vovk"]
[Result "0-1"]
[WhiteElo "2638"]
[BlackElo "2378"]
[TimeControl "180+2"]
[EndTime "13:55:56 PST"]
[Termination "Orest_Vovk won by resignation"]

1. e4 {[%clk 0:03:01.9]} 1... g5 {[%clk 0:03:00.3]} 2. d4 {[%clk 0:03:01.8]}
2... Bg7 {[%clk 0:02:58.9]} 3. Bxg5 {[%clk 0:03:01]} 3... c5 {[%clk 0:03:00.1]}
4. Be3 {[%clk 0:03:00.4]} 4... Qb6 {[%clk 0:03:01.1]} 5. Nd2 {[%clk 0:02:38.1]}
5... cxd4 {[%clk 0:03:01.4]} 6. Nc4 {[%clk 0:02:33.5]} 6... dxe3 {[%clk
0:03:01.5]} 7. Nxb6 {[%clk 0:02:32.6]} 7... exf2+ {[%clk 0:03:02.5]} 8. Kxf2
{[%clk 0:02:31.3]} 8... axb6 {[%clk 0:03:04.4]} 9. c3 {[%clk 0:02:23.9]} 9...
Nc6 {[%clk 0:02:55.6]} 10. Bd3 {[%clk 0:02:16.4]} 10... Nf6 {[%clk 0:02:54.5]}
11. h3 {[%clk 0:02:16.4]} 11... d6 {[%clk 0:02:42.9]} 12. Nf3 {[%clk 0:02:16.6]}
12... Nh5 {[%clk 0:02:27.6]} 13. Rf1 {[%clk 0:02:00.2]} 13... Nf4 {[%clk
0:02:22.1]} 14. Kg1 {[%clk 0:01:58.4]} 14... Nxd3 {[%clk 0:02:16.5]} 15. Qxd3
{[%clk 0:01:58.2]} 15... Ra5 {[%clk 0:02:13.1]} 16. a3 {[%clk 0:01:44.2]} 16...
Ne5 {[%clk 0:01:53.2]} 17. Nxe5 {[%clk 0:01:42.2]} 17... Rxe5 {[%clk 0:01:51.6]}
18. Rae1 {[%clk 0:01:03.9]} 18... Be6 {[%clk 0:01:43.9]} 19. Qe3 {[%clk
0:00:43]} 19... Rc5 {[%clk 0:01:28.8]} 20. Rf3 {[%clk 0:00:21.5]} 20... Be5
{[%clk 0:01:21.3]} 21. Qd2 {[%clk 0:00:18.8]} 21... Rg8 {[%clk 0:01:10.5]} 22.
b4 {[%clk 0:00:18.8]} 22... Rc4 {[%clk 0:01:08.1]} 23. Qc2 {[%clk 0:00:19.3]}
23... b5 {[%clk 0:01:03.8]} 24. a4 {[%clk 0:00:20.1]} 24... Kd7 {[%clk
0:00:38.5]} 25. axb5 {[%clk 0:00:20.7]} 25... Ra8 {[%clk 0:00:39.4]} 26. Rb1
{[%clk 0:00:12.9]} 26... Ra3 {[%clk 0:00:33.4]} 27. Rb3 {[%clk 0:00:13.6]} 27...
Rxb3 {[%clk 0:00:18.9]} 28. Qxb3 {[%clk 0:00:14.3]} 28... Rxe4 {[%clk
0:00:20.4]} 29. Qd1 {[%clk 0:00:14.1]} 29... Bc4 {[%clk 0:00:17.8]} 30. Qd2
{[%clk 0:00:10.8]} 30... Bxb5 {[%clk 0:00:15.5]} 31. Rxf7 {[%clk 0:00:11.2]}
31... Re2 {[%clk 0:00:14]} 32. Qc1 {[%clk 0:00:08.9]} 32... Bc4 {[%clk
0:00:12.4]} 33. Rf2 {[%clk 0:00:07.6]} 33... Re4 {[%clk 0:00:11.2]} 34. Qc2
{[%clk 0:00:06.3]} 34... d5 {[%clk 0:00:10.7]} 35. Qc1 {[%clk 0:00:05.1]} 35...
Bg3 {[%clk 0:00:11.3]} 36. Rf1 {[%clk 0:00:03.4]} 36... Bxf1 {[%clk 0:00:05.8]}
37. Kxf1 {[%clk 0:00:04.6]} 37... Re1+ {[%clk 0:00:06.4]} 38. Qxe1 {[%clk
0:00:05.4]} 38... Bxe1 {[%clk 0:00:08.3]} 39. Kxe1 {[%clk 0:00:06.5]} 39... b5
{[%clk 0:00:10.2]} 40. Kd2 {[%clk 0:00:07.4]} 40... e5 {[%clk 0:00:11.7]} 41.
Kd3 {[%clk 0:00:08.5]} 41... Ke6 {[%clk 0:00:12.9]} 42. g4 {[%clk 0:00:09.1]}
42... h5 {[%clk 0:00:12.4]} 43. gxh5 {[%clk 0:00:09]} 43... Kf5 {[%clk
0:00:13.3]} 44. Ke3 {[%clk 0:00:09.3]} 44... Kg5 {[%clk 0:00:14.5]} 45. Kf3
{[%clk 0:00:08.3]} 45... Kxh5 {[%clk 0:00:15.7]} 46. Ke3 {[%clk 0:00:09.3]}
46... Kh4 {[%clk 0:00:16.9]} 47. Kf3 {[%clk 0:00:09.9]} 47... Kxh3 {[%clk
0:00:18.2]} 0-1

[Event "*** Titled Tuesday Blitz"]
[Site "Chess.com"]
[Date "2019.01.01"]
[Round "4"]
[White "GrigorGrigorov"]
[Black "aa175"]
[Result "1-0"]
[WhiteElo "2785"]
[BlackElo "1927"]
[TimeControl "180+2"]
[EndTime "13:56:05 PST"]
[Termination "GrigorGrigorov won by checkmate"]

1. d4 {[%clk 0:03:01.9]} 1... Nf6 {[%clk 0:02:46.4]} 2. c4 {[%clk 0:03:01.4]}
2... g6 {[%clk 0:02:46.7]} 3. Nf3 {[%clk 0:03:00.8]} 3... Bg7 {[%clk 0:02:47.5]}
4. g3 {[%clk 0:03:02.2]} 4... O-O {[%clk 0:02:48.2]} 5. Bg2 {[%clk 0:03:03.7]}
5... d5 {[%clk 0:02:48.6]} 6. O-O {[%clk 0:03:04.6]} 6... dxc4 {[%clk
0:02:47.9]} 7. Na3 {[%clk 0:03:05.5]} 7... c5 {[%clk 0:02:47.3]} 8. dxc5 {[%clk
0:03:05.1]} 8... Qxd1 {[%clk 0:02:43.8]} 9. Rxd1 {[%clk 0:03:05]} 9... Na6
{[%clk 0:02:41]} 10. Nxc4 {[%clk 0:03:03.8]} 10... Nxc5 {[%clk 0:02:41.8]} 11.
Be3 {[%clk 0:03:05.1]} 11... Nce4 {[%clk 0:02:27.8]} 12. Rac1 {[%clk 0:03:02.9]}
12... Ng4 {[%clk 0:02:24.4]} 13. Bd4 {[%clk 0:02:07.9]} 13... Bxd4 {[%clk
0:02:14.7]} 14. Rxd4 {[%clk 0:02:08.7]} 14... Ngxf2 {[%clk 0:02:06]} 15. Rf1
{[%clk 0:02:05.5]} 15... Bh3 {[%clk 0:01:47.1]} 16. Rxf2 {[%clk 0:02:02.9]}
16... Nxf2 {[%clk 0:01:48.4]} 17. Kxf2 {[%clk 0:02:03.9]} 17... Bxg2 {[%clk
0:01:49.6]} 18. Kxg2 {[%clk 0:02:05.3]} 18... Rfd8 {[%clk 0:01:50.9]} 19. Re4
{[%clk 0:01:54.9]} 19... e6 {[%clk 0:01:41.1]} 20. Nce5 {[%clk 0:01:49.3]} 20...
f6 {[%clk 0:01:28]} 21. Nd3 {[%clk 0:01:48.2]} 21... e5 {[%clk 0:01:28.2]} 22.
g4 {[%clk 0:01:47.5]} 22... g5 {[%clk 0:01:03.2]} 23. Kf2 {[%clk 0:01:20.5]}
23... Rac8 {[%clk 0:01:01.3]} 24. Ke3 {[%clk 0:01:18.6]} 24... Kf7 {[%clk
0:00:52.5]} 25. Rb4 {[%clk 0:01:12.8]} 25... b6 {[%clk 0:00:50.7]} 26. Nd2
{[%clk 0:01:13.5]} 26... Rd6 {[%clk 0:00:17.3]} 27. Ne4 {[%clk 0:01:12.9]} 27...
Rdc6 {[%clk 0:00:13]} 28. Ra4 {[%clk 0:01:07.2]} 28... R6c7 {[%clk 0:00:11.6]}
29. Ra6 {[%clk 0:01:03.3]} 29... Rd8 {[%clk 0:00:10.8]} 30. a4 {[%clk
0:01:00.3]} 30... Rdd7 {[%clk 0:00:11.3]} 31. a5 {[%clk 0:00:59.7]} 31... bxa5
{[%clk 0:00:13.2]} 32. Rxf6+ {[%clk 0:00:59.6]} 32... Kg7 {[%clk 0:00:13.9]} 33.
Rf5 {[%clk 0:00:53.7]} 33... h6 {[%clk 0:00:13.1]} 34. Rxe5 {[%clk 0:00:54]}
34... Re7 {[%clk 0:00:10.6]} 35. Rxa5 {[%clk 0:00:50.6]} 35... Rc4 {[%clk
0:00:11.3]} 36. Re5 {[%clk 0:00:33.9]} 36... Rxe5 {[%clk 0:00:08.5]} 37. Nxe5
{[%clk 0:00:34.9]} 37... Rb4 {[%clk 0:00:09.7]} 38. Nd3 {[%clk 0:00:36.3]} 38...
Ra4 {[%clk 0:00:09]} 39. h3 {[%clk 0:00:28.4]} 39... Ra1 {[%clk 0:00:09.5]} 40.
Ng3 {[%clk 0:00:26.4]} 40... a5 {[%clk 0:00:06.7]} 41. Nf5+ {[%clk 0:00:27.1]}
41... Kh7 {[%clk 0:00:05.7]} 42. Kf3 {[%clk 0:00:21.6]} 42... a4 {[%clk
0:00:04.2]} 43. e4 {[%clk 0:00:16.8]} 43... Rf1+ {[%clk 0:00:03.6]} 44. Ke3
{[%clk 0:00:16.6]} 44... Rh1 {[%clk 0:00:04.4]} 45. e5 {[%clk 0:00:12.3]} 45...
Rxh3+ {[%clk 0:00:05.5]} 46. Kd4 {[%clk 0:00:13.7]} 46... Kg8 {[%clk 0:00:06.5]}
47. e6 {[%clk 0:00:14.3]} 47... Kf8 {[%clk 0:00:07.4]} 48. Nc5 {[%clk
0:00:13.6]} 48... Rh1 {[%clk 0:00:05.2]} 49. Nd7+ {[%clk 0:00:14.6]} 49... Ke8
{[%clk 0:00:06.5]} 50. Nf6+ {[%clk 0:00:15.8]} 50... Kf8 {[%clk 0:00:05.6]} 51.
e7+ {[%clk 0:00:17]} 51... Kf7 {[%clk 0:00:06.7]} 52. e8=Q+ {[%clk 0:00:18.3]}
52... Kxf6 {[%clk 0:00:08.6]} 53. Qe7+ {[%clk 0:00:19.5]} 53... Kg6 {[%clk
0:00:09.7]} 54. Qg7# {[%clk 0:00:21.1]} 1-0

[Event "*** Titled Tuesday Blitz"]
[Site "Chess.com"]
[Date "2019.01.01"]
[Round "4"]
[White "Tjktiger"]
[Black "PulpanJ"]
[Result "0-1"]
[WhiteElo "2714"]
[BlackElo "2620"]
[TimeControl "180+2"]
[EndTime "13:56:06 PST"]
[Termination "PulpanJ won by resignation"]

1. c4 {[%clk 0:03:01.9]} 1... e6 {[%clk 0:02:55.3]} 2. Nc3 {[%clk 0:03:00.9]}
2... d5 {[%clk 0:02:51.7]} 3. d4 {[%clk 0:03:02]} 3... Nf6 {[%clk 0:02:51.4]} 4.
cxd5 {[%clk 0:03:02.5]} 4... Nxd5 {[%clk 0:02:53.3]} 5. e4 {[%clk 0:03:03.6]}
5... Nxc3 {[%clk 0:02:54.7]} 6. bxc3 {[%clk 0:03:05.5]} 6... c5 {[%clk
0:02:56.2]} 7. Rb1 {[%clk 0:03:07.1]} 7... Be7 {[%clk 0:02:56.4]} 8. Nf3 {[%clk
0:03:07.9]} 8... O-O {[%clk 0:02:57.5]} 9. Bc4 {[%clk 0:03:09]} 9... Nc6 {[%clk
0:02:57.4]} 10. O-O {[%clk 0:03:05.9]} 10... Na5 {[%clk 0:02:56.8]} 11. Bd3
{[%clk 0:03:04]} 11... b6 {[%clk 0:02:55.9]} 12. d5 {[%clk 0:03:05.1]} 12...
exd5 {[%clk 0:02:54.2]} 13. exd5 {[%clk 0:03:07]} 13... c4 {[%clk 0:02:55.8]}
14. Bc2 {[%clk 0:03:08]} 14... Bb7 {[%clk 0:02:55.6]} 15. Re1 {[%clk 0:03:08.9]}
15... Re8 {[%clk 0:02:56.6]} 16. Ba4 {[%clk 0:03:04]} 16... Rf8 {[%clk
0:02:57.9]} 17. Bc2 {[%clk 0:03:04.4]} 17... Re8 {[%clk 0:02:59]} 18. Ba4 {[%clk
0:02:05.7]} 18... Rf8 {[%clk 0:02:59.5]} 19. Bf4 {[%clk 0:02:06.9]} 19... Bf6
{[%clk 0:02:20.4]} 20. d6 {[%clk 0:02:02.5]} 20... Bxc3 {[%clk 0:02:21.3]} 21.
Re7 {[%clk 0:01:55.2]} 21... Bc6 {[%clk 0:02:20.5]} 22. Bxc6 {[%clk 0:01:31.2]}
22... Nxc6 {[%clk 0:02:20]} 23. Rc7 {[%clk 0:01:26.3]} 23... Rc8 {[%clk
0:00:55.6]} 24. Rxc8 {[%clk 0:00:21.7]} 24... Qxc8 {[%clk 0:00:55.3]} 25. d7
{[%clk 0:00:18.6]} 25... Qb7 {[%clk 0:00:43.1]} 26. Qd5 {[%clk 0:00:19.1]} 26...
Bf6 {[%clk 0:00:08.9]} 27. Bg5 {[%clk 0:00:12.4]} 27... Bxg5 {[%clk 0:00:04.2]}
28. Nxg5 {[%clk 0:00:12.5]} 28... h6 {[%clk 0:00:05.3]} 29. Nxf7 {[%clk
0:00:07.9]} 29... Rxf7 {[%clk 0:00:05.5]} 30. d8=Q+ {[%clk 0:00:04.9]} 30...
Nxd8 {[%clk 0:00:06]} 31. Qxd8+ {[%clk 0:00:06.8]} 31... Kh7 {[%clk 0:00:07.9]}
32. Qd4 {[%clk 0:00:08.2]} 32... Qc6 {[%clk 0:00:06.3]} 33. Rc1 {[%clk
0:00:08.1]} 33... b5 {[%clk 0:00:06.7]} 34. h4 {[%clk 0:00:08.6]} 34... Qf6
{[%clk 0:00:05.4]} 35. Qe4+ {[%clk 0:00:09.2]} 35... Qf5 {[%clk 0:00:06.8]} 36.
Qe3 {[%clk 0:00:09.2]} 36... Qf4 {[%clk 0:00:07.6]} 37. Qxf4 {[%clk 0:00:03.8]}
37... Rxf4 {[%clk 0:00:08.4]} 38. g3 {[%clk 0:00:05.7]} 38... Rf7 {[%clk
0:00:09.5]} 39. Kf1 {[%clk 0:00:06.8]} 39... Re7 {[%clk 0:00:10.3]} 40. a4
{[%clk 0:00:07.7]} 40... a6 {[%clk 0:00:11.5]} 41. h5 {[%clk 0:00:08.9]} 41...
Rc7 {[%clk 0:00:09]} 42. Ke2 {[%clk 0:00:09.2]} 42... b4 {[%clk 0:00:10.5]} 43.
a5 {[%clk 0:00:09.8]} 43... Rc5 {[%clk 0:00:11.6]} 44. Kd2 {[%clk 0:00:10.6]}
44... c3+ {[%clk 0:00:11.7]} 45. Kc2 {[%clk 0:00:12.2]} 45... Rxa5 {[%clk
0:00:13.2]} 46. Kb3 {[%clk 0:00:14.1]} 46... Rb5 {[%clk 0:00:14.8]} 47. Ka4
{[%clk 0:00:14.6]} 47... b3 {[%clk 0:00:10.9]} 0-1

[Event "*** Titled Tuesday Blitz"]
[Site "Chess.com"]
[Date "2019.01.01"]
[Round "4"]
[White "WinnerOleg"]
[Black "Chessmatus"]
[Result "1/2-1/2"]
[WhiteElo "2386"]
[BlackElo "2185"]
[TimeControl "180+2"]
[EndTime "13:56:07 PST"]
[Termination "Game drawn - insufficient material"]

1. d4 {[%clk 0:03:01.9]} 1... Nf6 {[%clk 0:02:59.7]} 2. c4 {[%clk 0:03:02.7]}
2... e6 {[%clk 0:03:00.2]} 3. Nc3 {[%clk 0:03:04.2]} 3... d5 {[%clk 0:02:59]} 4.
cxd5 {[%clk 0:03:06.1]} 4... Nxd5 {[%clk 0:02:58.6]} 5. e4 {[%clk 0:03:04]} 5...
Nxc3 {[%clk 0:02:59.1]} 6. bxc3 {[%clk 0:03:05.9]} 6... c5 {[%clk 0:02:59.6]} 7.
Rb1 {[%clk 0:03:07.5]} 7... Be7 {[%clk 0:02:54]} 8. Nf3 {[%clk 0:03:08.5]} 8...
O-O {[%clk 0:02:52.7]} 9. Bd3 {[%clk 0:03:00.5]} 9... Nc6 {[%clk 0:02:52.6]} 10.
e5 {[%clk 0:02:54.7]} 10... cxd4 {[%clk 0:02:22.8]} 11. cxd4 {[%clk 0:02:56.6]}
11... Qa5+ {[%clk 0:02:16]} 12. Bd2 {[%clk 0:02:55.4]} 12... Qxa2 {[%clk
0:02:15.6]} 13. O-O {[%clk 0:02:56.2]} 13... a5 {[%clk 0:02:09.2]} 14. Ra1
{[%clk 0:01:46.4]} 14... Qd5 {[%clk 0:02:08.7]} 15. Qb1 {[%clk 0:01:43.7]} 15...
Nxd4 {[%clk 0:01:39.4]} 16. Bxh7+ {[%clk 0:01:34.6]} 16... Kh8 {[%clk
0:01:39.5]} 17. Nxd4 {[%clk 0:00:59.1]} 17... Qxd4 {[%clk 0:01:38.7]} 18. Rd1
{[%clk 0:00:37.1]} 18... Qxe5 {[%clk 0:01:30.4]} 19. Be4 {[%clk 0:00:19.9]}
19... Bd6 {[%clk 0:01:11.6]} 20. g3 {[%clk 0:00:16.9]} 20... Qc5 {[%clk
0:00:50.3]} 21. Be3 {[%clk 0:00:11.1]} 21... Qc7 {[%clk 0:00:50.2]} 22. Qb5
{[%clk 0:00:08.1]} 22... f5 {[%clk 0:00:41.9]} 23. Bg2 {[%clk 0:00:09.2]} 23...
Bb4 {[%clk 0:00:27.4]} 24. Bb6 {[%clk 0:00:06.9]} 24... Qe7 {[%clk 0:00:22.6]}
25. Bxa5 {[%clk 0:00:07.7]} 25... Bxa5 {[%clk 0:00:22.7]} 26. Rxa5 {[%clk
0:00:09.6]} 26... Rxa5 {[%clk 0:00:23.7]} 27. Qxa5 {[%clk 0:00:11.5]} 27... g6
{[%clk 0:00:10.5]} 28. Qb6 {[%clk 0:00:11.4]} 28... Rf7 {[%clk 0:00:09.9]} 29.
h4 {[%clk 0:00:11.7]} 29... Qc7 {[%clk 0:00:09.8]} 30. Qb2+ {[%clk 0:00:12.8]}
30... Kh7 {[%clk 0:00:10.3]} 31. Rc1 {[%clk 0:00:14.2]} 31... Qd7 {[%clk
0:00:10.7]} 32. Qc3 {[%clk 0:00:15.6]} 32... Rf8 {[%clk 0:00:08.9]} 33. Qc5
{[%clk 0:00:17.1]} 33... Rd8 {[%clk 0:00:09.1]} 34. Kh2 {[%clk 0:00:14.7]} 34...
b5 {[%clk 0:00:10]} 35. Rb1 {[%clk 0:00:13.3]} 35... Ba6 {[%clk 0:00:10.6]} 36.
Bc6 {[%clk 0:00:13.9]} 36... Qd6 {[%clk 0:00:11.6]} 37. Qxd6 {[%clk 0:00:13.3]}
37... Rxd6 {[%clk 0:00:12.7]} 38. Bxb5 {[%clk 0:00:15.2]} 38... Rb6 {[%clk
0:00:13.8]} 39. Bd3 {[%clk 0:00:16.8]} 39... Rxb1 {[%clk 0:00:14.6]} 40. Bxb1
{[%clk 0:00:18.7]} 40... Be2 {[%clk 0:00:13.9]} 41. f4 {[%clk 0:00:19.2]} 41...
Kg7 {[%clk 0:00:14.1]} 42. Bc2 {[%clk 0:00:20.7]} 42... Kf6 {[%clk 0:00:15.4]}
43. Bb3 {[%clk 0:00:22.3]} 43... e5 {[%clk 0:00:16.2]} 44. fxe5+ {[%clk
0:00:22.9]} 44... Kxe5 {[%clk 0:00:17.2]} 45. Bf7 {[%clk 0:00:24.4]} 45... Bh5
{[%clk 0:00:17.7]} 46. Kh3 {[%clk 0:00:23.3]} 46... Ke4 {[%clk 0:00:19]} 47. Be8
{[%clk 0:00:22.7]} 47... Kf3 {[%clk 0:00:20.2]} 48. Bf7 {[%clk 0:00:23]} 48...
Kf2 {[%clk 0:00:21.4]} 49. Be8 {[%clk 0:00:21.6]} 49... Kg1 {[%clk 0:00:22.5]}
50. g4 {[%clk 0:00:21.1]} 50... Bxg4+ {[%clk 0:00:23.7]} 51. Kg3 {[%clk
0:00:22.5]} 51... Bh5 {[%clk 0:00:24]} 52. Kf4 {[%clk 0:00:15.9]} 52... Kg2
{[%clk 0:00:24.4]} 53. Bd7 {[%clk 0:00:17.4]} 53... Kh3 {[%clk 0:00:25]} 54.
Bxf5+ {[%clk 0:00:18.1]} 54... gxf5 {[%clk 0:00:26.2]} 55. Kxf5 {[%clk 0:00:20]}
55... Kxh4 {[%clk 0:00:27.9]} 1/2-1/2

[Event "*** Titled Tuesday Blitz"]
[Site "Chess.com"]
[Date "2019.01.01"]
[Round "4"]
[White "BrianWall"]
[Black "julinha97"]
[Result "1-0"]
[WhiteElo "2138"]
[BlackElo "2110"]
[TimeControl "180+2"]
[EndTime "13:56:14 PST"]
[Termination "BrianWall won by resignation"]

1. e4 {[%clk 0:03:01.9]} 1... c5 {[%clk 0:02:58.7]} 2. Nf3 {[%clk 0:03:01.8]}
2... d6 {[%clk 0:02:57.1]} 3. d4 {[%clk 0:03:01.9]} 3... cxd4 {[%clk 0:02:59]}
4. Nxd4 {[%clk 0:03:02.9]} 4... Nf6 {[%clk 0:03:00.6]} 5. Nc3 {[%clk 0:03:04.2]}
5... g6 {[%clk 0:03:01.6]} 6. Be2 {[%clk 0:03:03.4]} 6... Bg7 {[%clk 0:03:01.8]}
7. O-O {[%clk 0:03:04.7]} 7... Nc6 {[%clk 0:03:00.9]} 8. Nb3 {[%clk 0:03:05.3]}
8... O-O {[%clk 0:03:01.6]} 9. Re1 {[%clk 0:03:03.3]} 9... Be6 {[%clk
0:02:13.6]} 10. Bf1 {[%clk 0:02:59]} 10... d5 {[%clk 0:02:07.1]} 11. e5 {[%clk
0:02:54.3]} 11... Ne4 {[%clk 0:02:03.5]} 12. Nxe4 {[%clk 0:02:34.6]} 12... dxe4
{[%clk 0:02:05.4]} 13. Bf4 {[%clk 0:02:35]} 13... Nxe5 {[%clk 0:01:56.3]} 14.
Rxe4 {[%clk 0:02:34.7]} 14... Nc6 {[%clk 0:01:51.3]} 15. c3 {[%clk 0:02:29.8]}
15... Bf5 {[%clk 0:01:25.3]} 16. Re3 {[%clk 0:02:28.4]} 16... e5 {[%clk
0:01:25.9]} 17. Bg3 {[%clk 0:02:28.7]} 17... Qb6 {[%clk 0:01:09.6]} 18. Qd5
{[%clk 0:02:23.9]} 18... Rad8 {[%clk 0:01:04.7]} 19. Qc5 {[%clk 0:02:24.5]}
19... Qxc5 {[%clk 0:01:05.6]} 20. Nxc5 {[%clk 0:02:24.9]} 20... b6 {[%clk
0:01:07.3]} 21. Ne4 {[%clk 0:02:25.3]} 21... Bxe4 {[%clk 0:00:59.2]} 22. Rxe4
{[%clk 0:02:25.4]} 22... f5 {[%clk 0:00:58.9]} 23. Rc4 {[%clk 0:02:25.8]} 23...
Na5 {[%clk 0:01:00.1]} 24. Rc7 {[%clk 0:02:25.2]} 24... Rf7 {[%clk 0:00:56.9]}
25. Rxf7 {[%clk 0:02:20.1]} 25... Kxf7 {[%clk 0:00:58.2]} 26. b4 {[%clk
0:02:20.8]} 26... Nc6 {[%clk 0:00:55.2]} 27. f4 {[%clk 0:02:20.3]} 27... e4
{[%clk 0:00:54.4]} 28. Bb5 {[%clk 0:02:12.6]} 28... Bxc3 {[%clk 0:00:49]} 29.
Rc1 {[%clk 0:02:11.9]} 29... Bd4+ {[%clk 0:00:49.8]} 30. Bf2 {[%clk 0:02:11.9]}
30... Bxf2+ {[%clk 0:00:38]} 31. Kxf2 {[%clk 0:02:12.1]} 31... Nxb4 {[%clk
0:00:39.9]} 32. Rc7+ {[%clk 0:02:10.9]} 32... Ke6 {[%clk 0:00:41.2]} 33. Rxa7
{[%clk 0:02:09.7]} 33... Rd2+ {[%clk 0:00:41.5]} 34. Kg3 {[%clk 0:02:10.7]}
34... e3 {[%clk 0:00:39.4]} 35. Kf3 {[%clk 0:02:09.6]} 35... Nd5 {[%clk
0:00:35.3]} 36. Bc4 {[%clk 0:02:04.5]} 36... Rf2+ {[%clk 0:00:35.8]} 37. Kg3
{[%clk 0:02:04.6]} 37... Rc2 {[%clk 0:00:28.3]} 38. Bb3 {[%clk 0:02:01.7]} 38...
e2 {[%clk 0:00:25.3]} 39. Kf2 {[%clk 0:01:59.6]} 39... Rb2 {[%clk 0:00:19.8]}
40. Ra8 {[%clk 0:01:56.5]} 40... Rxb3 {[%clk 0:00:04.3]} 41. axb3 {[%clk
0:01:55.6]} 41... Nxf4 {[%clk 0:00:06.2]} 42. g3 {[%clk 0:01:55.1]} 42... Nd3+
{[%clk 0:00:07.3]} 43. Kxe2 {[%clk 0:01:56]} 43... Nc1+ {[%clk 0:00:09.2]} 44.
Ke3 {[%clk 0:01:55.1]} 44... Nxb3 {[%clk 0:00:11.1]} 45. Rb8 {[%clk 0:01:53.3]}
45... Nc5 {[%clk 0:00:09.8]} 46. Rxb6+ {[%clk 0:01:52.9]} 46... Kd5 {[%clk
0:00:11.5]} 47. Rb8 {[%clk 0:01:51.5]} 47... h6 {[%clk 0:00:09.9]} 48. Rg8
{[%clk 0:01:48.2]} 48... g5 {[%clk 0:00:10.4]} 49. Rg6 {[%clk 0:01:48.5]} 49...
Ne4 {[%clk 0:00:05.7]} 50. Rxh6 {[%clk 0:01:47.1]} 50... Ke5 {[%clk 0:00:07.6]}
51. Rh8 {[%clk 0:01:47.1]} 51... Nf6 {[%clk 0:00:08.5]} 52. Kf3 {[%clk
0:01:40.6]} 52... f4 {[%clk 0:00:08.7]} 53. g4 {[%clk 0:01:40.8]} 53... Ke6
{[%clk 0:00:07.5]} 54. Ra8 {[%clk 0:01:40.1]} 54... Kf7 {[%clk 0:00:08.2]} 55.
Ra6 {[%clk 0:01:38.1]} 55... Nd5 {[%clk 0:00:02.5]} 56. Rd6 {[%clk 0:01:35.1]}
56... Nf6 {[%clk 0:00:03.8]} 57. Rb6 {[%clk 0:01:32.1]} 57... Kg6 {[%clk
0:00:05.7]} 58. h3 {[%clk 0:01:29.7]} 58... Kg7 {[%clk 0:00:06.9]} 59. Rb5
{[%clk 0:01:29.1]} 59... Kg6 {[%clk 0:00:07.9]} 60. Rf5 {[%clk 0:01:29.8]} 60...
Nd7 {[%clk 0:00:08.9]} 61. Ke4 {[%clk 0:01:30]} 61... Nf6+ {[%clk 0:00:09.9]}
62. Ke5 {[%clk 0:01:30.1]} 62... Nd7+ {[%clk 0:00:11.1]} 63. Ke6 {[%clk
0:01:30.3]} 63... Nb6 {[%clk 0:00:09.7]} 64. Rf6+ {[%clk 0:01:30.6]} 64... Kg7
{[%clk 0:00:11.3]} 65. Kf5 {[%clk 0:01:31.5]} 65... Nd5 {[%clk 0:00:11.8]} 66.
Rg6+ {[%clk 0:01:31.8]} 66... Kf7 {[%clk 0:00:12.6]} 67. Rxg5 {[%clk 0:01:32.5]}
67... f3 {[%clk 0:00:13.4]} 68. Ke4 {[%clk 0:01:33.2]} 68... Nf6+ {[%clk
0:00:04.7]} 69. Kxf3 {[%clk 0:01:33.3]} 1-0